fUSD/lending_fUSD_20240214
["ID","MTS","AMOUNT","RATE_DAILY","PERIOD"]
[314013635,1707923532025,-721.07,0.00039726,7]
[314013636,1707923532034,-500.0,0.00039726,7]
[314013637,1707923532044,-501.48,0.00039726,7]
[314013638,1707923532055,-1882.77,0.00039726,7]
[314013639,1707923532065,-804.17,0.00039726,7]
[314013640,1707923532075,-500.0,0.00039726,7]
[314013641,1707923532084,-1538.55,0.00039726,7]
[314013642,1707923532094,-500.0,0.00039726,7]
[314013643,1707923532104,-500.0,0.00039726,7]
[314013644,1707923532113,-747.44,0.00039726,7]
[314013645,1707923532123,-500.0,0.00039726,7]
[314013646,1707923532133,-1390.73,0.00039726,7]
[314013647,1707923532143,-1109.74,0.00039726,7]
[314013648,1707923532153,-604.6990258,0.00039726,7]
[314013649,1707923532169,-632.23,0.00039726,7]
[314013650,1707923532178,-500.0,0.00039726,7]
[314013651,1707923532188,-886.7,0.00039726,7]
[314013652,1707923532198,-500.0,0.00039726,7]
[314013653,1707923532208,-500.0,0.00039726,7]
[314013654,1707923532217,-582.6,0.00039726,7]
[314013655,1707923532226,-500.0,0.00039726,2]
[314013656,1707923532236,-500.0,0.00039726,7]
[314013657,1707923532245,-631.42,0.00039726,7]
[314013658,1707923532254,-500.0,0.00039726,7]
[314013659,1707923532264,-198.29623706,0.00039726,7]
[314013660,1707923532274,-1281.5,0.00039726,7]
[314013661,1707923532284,-382.22129344,0.00039726,7]
[314013662,1707923532295,-500.0,0.00039726,7]
[314013663,1707923532305,-500.0,0.00039726,7]
[314013664,1707923532316,-500.0,0.00039726,7]
[314013665,1707923532326,-1512.4,0.00039726,7]
[314013666,1707923532335,-669.64,0.00039726,7]
[314013667,1707923532345,-500.0,0.00039726,7]
[314013668,1707923532355,-2645.87,0.00039726,7]
[314013669,1707923532365,-500.0,0.00039726,7]
[314013670,1707923532375,-649.97,0.00039726,7]
[314013671,1707923532385,-9592.87,0.00039726,7]
[314013672,1707923532396,-6589.39,0.00039726,7]
[314013673,1707923532406,-537.36,0.00039726,7]
[314013674,1707923532419,-500.0,0.00039726,7]
[314013675,1707923532429,-1074.08,0.00039726,7]
[314013676,1707923532439,-500.0,0.00039726,7]
[314013677,1707923532450,-712.86,0.00039726,7]
[314013678,1707923532461,-10349.22,0.00039726,7]
[314013679,1707923532470,-500.0,0.00039726,7]
[314013680,1707923532479,-2138.7,0.00039726,7]
[314013681,1707923532489,-500.0,0.00039726,7]
[314013682,1707923532499,-2522.18,0.00039726,7]
[314013683,1707923532508,-1253.86,0.00039726,7]
[314013684,1707923532518,-500.0,0.00039726,7]
[314013685,1707923532527,-617.22,0.00039726,7]
[314013686,1707923532536,-775.14,0.00039726,7]
[314013687,1707923532546,-5438.42,0.00039726,7]
[314013688,1707923532555,-5792.28,0.00039726,7]
[314013689,1707923532564,-1042.95,0.00039726,7]
[314013690,1707923532573,-500.0,0.00039726,7]
[314013691,1707923532582,-1101.1,0.00039726,7]
[314013692,1707923532592,-1305.25,0.00039726,7]
[314013693,1707923532600,-1375.63,0.00039726,7]
[314013694,1707923532609,-500.0,0.00039726,7]
[314013695,1707923532618,-1710.63,0.00039726,7]
[314013696,1707923532627,-1942.7,0.00039726,7]
[314013697,1707923532638,-3610.33,0.00039726,7]
[314013698,1707923532647,-656.71,0.00039726,7]
[314013699,1707923532657,-500.0,0.00039726,7]
[314013700,1707923532670,-508.16,0.00039726,7]
[314013701,1707923532679,-500.0,0.00039726,7]
[314013702,1707923532689,-500.0,0.00039726,7]
[314013703,1707923532699,-13119.1,0.00039726,7]
[314013704,1707923532709,-2795.61,0.00039726,7]
[314013705,1707923532718,-4841.93,0.00039726,7]
[314013706,1707923532728,-789.06,0.00039726,7]
[314013707,1707923532738,-1486.36,0.00039726,7]
[314013708,1707923532747,-3238.15,0.00039726,7]
[314013709,1707923532756,-1122.77,0.00039726,7]
[314013710,1707923532765,-805.46,0.00039726,7]
[314013711,1707923532774,-5897.47,0.00039726,7]
[314013712,1707923532784,-664.49,0.00039726,7]
[314013713,1707923532793,-1313.77,0.00039726,7]
[314013714,1707923532802,-500.0,0.00039726,7]
[314013715,1707923532811,-574.19,0.00039726,7]
[314013716,1707923532820,-500.0,0.00039726,7]
[314013717,1707923532829,-11522.74,0.00039726,7]
[314013718,1707923532839,-500.0,0.00039726,7]
[314013719,1707923532848,-1290.94,0.00039726,7]
[314013720,1707923532858,-520.12,0.00039726,7]
[314013721,1707923532868,-1511.05,0.00039726,7]
[314013722,1707923532877,-879.95,0.00039726,7]
[314013723,1707923532888,-6267.83,0.00039726,7]
[314013724,1707923532898,-2830.38,0.00039726,7]
[314013725,1707923532907,-763.78,0.00039726,7]
[314013726,1707923532920,-1371.91,0.00039726,7]
[314013727,1707923532929,-626.07,0.00039726,7]
[314013728,1707923532938,-500.0,0.00039726,7]
[314013729,1707923532947,-4425.6,0.00039726,7]
[314013730,1707923532957,-500.0,0.00039726,7]
[314013731,1707923532966,-500.0,0.00039726,7]
[314013732,1707923532978,-986.33,0.00039726,7]
[314013733,1707923532986,-45639.2,0.00039726,7]
[314013734,1707923532995,-5389.09,0.00039726,7]
[314013735,1707923533005,-1240.03,0.00039726,7]
[314013736,1707923533016,-500.0,0.00039726,7]
[314013737,1707923533026,-558.68,0.00039726,7]
[314013738,1707923533035,-4636.49,0.00039726,7]
[314013739,1707923533044,-500.0,0.00039726,7]
[314013740,1707923533054,-5227.83,0.00039726,7]
[314013741,1707923533063,-525.56,0.00039726,7]
[314013742,1707923533072,-2461.93,0.00039726,7]
[314013743,1707923533082,-682.43,0.00039726,7]
[314013744,1707923533092,-1060.11,0.00039726,7]
[314013745,1707923533102,-1031.1,0.00039726,7]
[314013746,1707923533112,-3757.3,0.00039726,7]
[314013747,1707923533122,-741.06,0.00039726,7]
[314013748,1707923533132,-777.41,0.00039726,7]
[314013749,1707923533141,-838.79,0.00039726,7]
[314013750,1707923533151,-1479.6,0.00039726,7]
[314013751,1707923533160,-866.09,0.00039726,7]
[314013752,1707923533172,-8419.92,0.00039726,7]
[314013753,1707923533182,-3315.92,0.00039726,7]
[314013754,1707923533192,-1669.6,0.00039726,7]
[314013755,1707923533200,-500.0,0.00039726,7]
[314013756,1707923533209,-1425.19,0.00039726,7]
[314013757,1707923533219,-500.0,0.00039726,7]
[314013758,1707923533229,-941.92,0.00039726,7]
[314013759,1707923533238,-1068.3,0.00039726,7]
[314013760,1707923533248,-978.39,0.00039726,7]
[314013761,1707923533258,-1743.01,0.00039726,7]
[314013762,1707923533268,-500.0,0.00039726,7]
[314013763,1707923533279,-527.53,0.00039726,7]
[314013764,1707923533289,-5014.41,0.00039726,7]
[314013765,1707923533300,-2618.16,0.00039726,7]
[314013766,1707923533310,-16404.96,0.00039726,7]
[314013767,1707923533319,-1253.74,0.00039726,7]
[314013768,1707923533329,-1428.29,0.00039726,7]
[314013769,1707923533339,-12919.21,0.00039726,7]
[314013770,1707923533349,-500.0,0.00039726,7]
[314013771,1707923533359,-725.51,0.00039726,7]
[314013772,1707923533369,-1250.0,0.00039726,2]
[314013773,1707923533378,-670.32,0.00039726,7]
[314013774,1707923533388,-500.0,0.00039726,7]
[314013775,1707923533397,-564.17,0.00039726,7]
[314013776,1707923533407,-608.21,0.00039726,7]
[314013777,1707923533418,-3982.22,0.00039726,7]
[314013778,1707923533427,-500.0,0.00039726,7]
[314013779,1707923533436,-15886.12,0.00039726,7]
[314013780,1707923533445,-1912.2,0.00039726,7]
[314013781,1707923533455,-2293.57,0.00039726,7]
[314013782,1707923533464,-1078.52,0.00039726,7]
[314013783,1707923533474,-1675.86,0.00039726,7]
[314013784,1707923533484,-4682.24,0.00039726,7]
[314013785,1707923533493,-998.25,0.00039726,7]
[314013786,1707923533676,-1548.99,0.00039726,7]
[314013787,1707923533686,-500.0,0.00039726,7]
[314013788,1707923533696,-2172.47,0.00039726,7]
[314013789,1707923533705,-1678.3,0.00039726,7]
[314013790,1707923533714,-500.0,0.00039726,7]
[314013791,1707923533724,-4636.94,0.00039726,7]
[314013792,1707923533734,-500.0,0.00039726,7]
[314013793,1707923533744,-905.58,0.00039726,7]
[314013794,1707923533754,-24853.72,0.00039726,7]
[314013795,1707923533764,-3347.59,0.00039726,7]
[314013796,1707923533773,-2682.03,0.00039726,7]
[314013797,1707923533783,-500.0,0.00039726,7]
[314013798,1707923533792,-741.23,0.00039726,7]
[314013799,1707923533802,-4661.42,0.00039726,7]
[314013800,1707923533811,-504.17,0.00039726,7]
[314013801,1707923533821,-644.02,0.00039726,7]
[314013802,1707923533830,-1447.91,0.00039726,7]
[314013803,1707923533839,-870.17,0.00039726,7]
[314013804,1707923533849,-6063.47,0.00039726,7]
[314013805,1707923533858,-575.73,0.00039726,2]
[314013806,1707923533867,-513.51,0.00039726,7]
[314013807,1707923533877,-13772.64,0.00039726,7]
[314013808,1707923533888,-734.67,0.00039726,7]
[314013809,1707923533897,-861.53,0.00039726,7]
[314013810,1707923533907,-4963.65,0.00039726,7]
[314013811,1707923533920,-4015.51,0.00039726,7]
[314013812,1707923533930,-1647.66,0.00039726,7]
[314013813,1707923533939,-500.0,0.00039726,7]
[314013814,1707923533949,-834.17,0.00039726,7]
[314013815,1707923533959,-1651.62,0.00039726,7]
[314013816,1707923533971,-1367.71,0.00039726,7]
[314013817,1707923533983,-705.01,0.00039726,7]
[314013818,1707923533992,-738.43,0.00039726,7]
[314013819,1707923534002,-500.0,0.00039726,7]
[314013820,1707923534012,-1605.94,0.00039726,7]
[314013821,1707923534021,-1397.98,0.00039726,7]
[314013822,1707923534030,-1232.76,0.00039726,7]
[314013823,1707923534040,-2624.93,0.00039726,7]
[314013824,1707923534049,-6303.05,0.00039726,7]
[314013825,1707923534060,-3882.2,0.00039726,7]
[314013826,1707923534069,-1424.26,0.00039726,7]
[314013827,1707923534080,-6722.84,0.00039726,7]
[314013828,1707923534090,-6796.38,0.00039726,7]
[314013829,1707923534099,-500.0,0.00039726,7]
[314013830,1707923534109,-9115.46,0.00039726,7]
[314013831,1707923534118,-1430.04,0.00039726,7]
[314013832,1707923534127,-876.71,0.00039726,7]
[314013833,1707923534137,-1566.04,0.00039726,7]
[314013834,1707923534147,-1159.69,0.00039726,7]
[314013835,1707923534156,-5625.73,0.00039726,7]
[314013836,1707923534167,-742.15,0.00039726,7]
[314013837,1707923534178,-500.0,0.00039726,7]
[314013838,1707923534187,-1074.84,0.00039726,7]
[314013839,1707923534197,-21955.42,0.00039726,7]
[314013840,1707923534207,-500.0,0.00039726,7]
[314013841,1707923534216,-1224.55,0.00039726,7]
[314013842,1707923534225,-10536.73,0.00039726,7]
[314013843,1707923534235,-3349.17,0.00039726,7]
[314013844,1707923534245,-1141.82,0.00039726,7]
[314013845,1707923534254,-4103.23,0.00039726,7]
[314013846,1707923534264,-15646.43,0.00039726,7]
[314013847,1707923534273,-500.0,0.00039726,7]
[314013848,1707923534283,-580.0,0.00039726,7]
[314013849,1707923534292,-888.9,0.00039726,7]
[314013850,1707923534301,-849.7,0.00039726,7]
[314013851,1707923534311,-1131.16,0.00039726,7]
[314013852,1707923534321,-500.0,0.00039726,7]
[314013853,1707923534331,-403.52279377,0.00039726,7]
[314013854,1707923534340,-970.39,0.00039726,7]
[314013855,1707923534350,-2458.64,0.00039726,7]
[314013856,1707923534360,-1000.0,0.00039726,30]
[314013857,1707923534370,-1032.81,0.00039726,7]
[314013858,1707923534380,-940.22,0.00039726,7]
[314013859,1707923534390,-845.63,0.00039726,7]
[314013860,1707923534400,-655.93,0.00039726,7]
[314013861,1707923534409,-2020.71,0.00039726,7]
[314013862,1707923534422,-861.05,0.00039726,7]
[314013863,1707923534432,-1868.07,0.00039726,7]
[314013864,1707923534441,-4353.77,0.00039726,7]
[314013865,1707923534450,-2136.24,0.00039726,7]
[314013866,1707923534459,-500.0,0.00039726,7]
[314013867,1707923534468,-3468.32,0.00039726,7]
[314013868,1707923534477,-1175.69,0.00039726,7]
[314013869,1707923534487,-570.32,0.00039726,7]
[314013870,1707923534496,-4307.44,0.00039726,7]
[314013871,1707923534505,-2131.96,0.00039726,7]
[314013872,1707923534515,-4133.28,0.00039726,7]
[314013873,1707923534524,-3754.14,0.00039726,7]
[314013874,1707923534533,-500.0,0.00039726,7]
[314013875,1707923534542,-1200.28,0.00039726,7]
[314013876,1707923534551,-551.94,0.00039726,7]
[314013877,1707923534560,-1293.93,0.00039726,7]
[314013878,1707923534569,-1428.62,0.00039726,7]
[314013879,1707923534579,-2643.73,0.00039726,7]
[314013880,1707923534588,-4255.94,0.00039726,7]
[314013881,1707923534598,-500.0,0.00039726,7]
[314013882,1707923534608,-1073.43,0.00039726,7]
[314013883,1707923534618,-1154.7,0.00039726,7]
[314013884,1707923534629,-500.0,0.00039726,7]
[314013885,1707923534639,-749.27,0.00039726,7]
[314013886,1707923534649,-1681.08,0.00039726,7]
[314013887,1707923534661,-696.07,0.00039726,7]
[314013888,1707923534674,-1960.66,0.00039726,7]
[314013889,1707923534684,-1992.67,0.00039726,7]
[314013890,1707923534694,-4598.11,0.00039726,7]
[314013891,1707923534704,-2148.61,0.00039726,7]
[314013892,1707923534715,-776.5,0.00039726,7]
[314013893,1707923534725,-876.47,0.00039726,7]
[314013894,1707923534735,-907.63,0.00039726,7]
[314013895,1707923534744,-759.83,0.00039726,7]
[314013896,1707923534754,-1863.83,0.00039726,7]
[314013897,1707923534764,-22229.37,0.00039726,7]
[314013898,1707923534774,-2233.48,0.00039726,7]
[314013899,1707923534785,-500.0,0.00039726,7]
[314013900,1707923534795,-1407.78,0.00039726,7]
[314013901,1707923534805,-2807.7,0.00039726,7]
[314013902,1707923534815,-500.0,0.00039726,7]
[314013903,1707923534826,-4409.87,0.00039726,7]
[314013904,1707923534836,-749.48,0.00039726,7]
[314013905,1707923534845,-500.0,0.00039726,7]
[314013906,1707923534855,-770.43,0.00039726,7]
[314013907,1707923534865,-940.66,0.00039726,7]
[314013908,1707923534874,-1582.96,0.00039726,7]
[314013909,1707923534884,-778.24,0.00039726,7]
[314013910,1707923534894,-819.98,0.00039726,7]
[314013911,1707923534904,-501.61,0.00039726,7]
[314013912,1707923534913,-1689.02,0.00039726,7]
[314013913,1707923534928,-188.825359,0.00039726,14]
[314013914,1707923534937,-302.0,0.00039739,4]
[314013915,1707923534946,-151.021419,0.00039748,19]
[314013916,1707923534955,-312.86,0.0003975,2]
[314013917,1707923534964,-12192.91973,0.0003978,6]
[314013918,1707923534976,-150.0,0.00039789,7]
[314013919,1707923534985,-10000.0,0.00039789,30]
[314013920,1707923534994,-1532.39478887,0.00039799,7]
[314013921,1707923535004,-631.18465979,0.00039799,7]
[314013922,1707923535016,-996.19465956,0.00039799,7]
[314013923,1707923535025,-1222.41591722,0.00039799,7]
[314013924,1707923535034,-1120.06673539,0.00039799,7]
[314013925,1707923535044,-104018.00448788,0.000398,10]
[314013926,1707923535053,-300.0,0.000398,41]
[314013927,1707923535075,-1000.0,0.000398,41]
[314013928,1707923535085,-2641.0,0.00039848,20]
[314013929,1707923535095,-544.0,0.00039848,20]
[314013930,1707923535104,-1000.0,0.00039865,30]
[314013931,1707923535113,-8320.0,0.0003989,30]
[314013932,1707923535123,-4124.4,0.000399,7]
[314013933,1707923535132,-150.0,0.0003991,2]
[314013934,1707923535142,-150.0,0.0003991,2]
[314013935,1707923535151,-150.9,0.00039922,2]
[314013936,1707923535161,-151.021414,0.00039948,14]
[314013937,1707923535176,-200.0,0.00039987,4]
[314013938,1707923535186,-500.0,0.00039999,31]
[314013939,1707923535196,-500.0,0.00039999,31]
[314013940,1707923535205,-500.0,0.00039999,31]
[314013941,1707923535215,-500.0,0.00039999,31]
[314013942,1707923535224,-500.0,0.00039999,31]
[314013943,1707923535234,-296.56946718,0.00039999,31]
[314013944,1707923535243,-500.0,0.00039999,31]
[314013945,1707923535253,-500.0,0.00039999,31]
[314013946,1707923535263,-500.0,0.00039999,31]
[314013947,1707923535273,-500.0,0.00039999,31]
[314013948,1707923535283,-644.20796259,0.00039999,31]
[314013949,1707923535292,-394.63085082,0.00039999,31]
[314013950,1707923535302,-204.66055539,0.00039999,31]
[314013951,1707923535311,-500.0,0.00039999,31]
[314013952,1707923535321,-500.0,0.00039999,31]
[314013953,1707923535330,-381.24071375,0.00039999,31]
[314013954,1707923535339,-500.0,0.00039999,31]
[314013955,1707923535349,-597.69893607,0.00039999,31]
[314013956,1707923535358,-500.0,0.00039999,31]
[314013957,1707923535368,-500.0,0.00039999,31]
[314013958,1707923535377,-591.96030589,0.00039999,31]
[314013959,1707923535386,-439.93748243,0.00039999,31]
[314013960,1707923535396,-177.6183671,0.00039999,31]
[314013961,1707923535405,-500.0,0.00039999,31]
[314013962,1707923535414,-500.0,0.00039999,31]
[314013963,1707923535428,-500.0,0.00039999,31]
[314013964,1707923535437,-331.40177818,0.00039999,31]
[314013965,1707923535446,-433.26501447,0.00039999,31]
[314013966,1707923535455,-491.7872564,0.00039999,31]
[314013967,1707923535465,-500.0,0.00039999,31]
[314013968,1707923535474,-358.66209008,0.00039999,31]
[314013969,1707923535483,-275.52807514,0.00039999,31]
[314013970,1707923535492,-500.0,0.00039999,31]
[314013971,1707923535502,-500.0,0.00039999,31]
[314013972,1707923535512,-100000.0,0.0004,30]
[314013973,1707923535522,-49877.03729009,0.0004,4]
[314013974,1707923535532,-11837.20256003,0.0004,4]
[314013975,1707923535541,-194.6693127,0.0004,2]
[314013976,1707923535550,-500000.0,0.0004,4]
[314013977,1707923535560,-3200.0,0.0004,4]
[314013978,1707923535569,-162.73682232,0.0004,4]
[314013979,1707923535578,-447.15062891,0.0004,4]
[314013980,1707923535588,-5139.71074176,0.0004,4]
[314013981,1707923535597,-158.49457949,0.0004,3]
[314013982,1707923535607,-9854.03712628,0.0004,4]
[314013983,1707923535616,-2454.52133874,0.0004,4]
[314013984,1707923535626,-271252.43208514,0.0004,10]
[314013985,1707923535636,-200.0,0.0004,14]
[314013986,1707923535645,-5650.0,0.0004,14]
[314013987,1707923535654,-503.53,0.0004,5]
[314013988,1707923535663,-3079.54167535,0.0004,10]
[314013989,1707923535677,-1004.0,0.0004,2]
[314013990,1707923535686,-58970.0,0.0004,2]
[314013991,1707923535695,-386.0,0.0004,9]
[314013992,1707923535704,-1441.20959872,0.0004,30]
[314013993,1707923535714,-516.67057411,0.0004,30]
[314013994,1707923535723,-212.47627283,0.0004,30]
[314013995,1707923535732,-1238.2194712,0.0004,90]
[314013996,1707923535741,-300.0,0.0004,41]
[314013997,1707923535750,-6879278.11253572,0.0004,7]
[314013998,1707923535759,-15530.90299661,0.0004,6]
[314013999,1707923535768,-500.0,0.0004,4]
[314014000,1707923535777,-900.0,0.0004,120]
[314014001,1707923535787,-305.28514236,0.0004,25]
[314014002,1707923535796,-71945.23235327,0.0004,4]
[314014003,1707923535805,-2126.41361408,0.0004,40]
[314014004,1707923535814,-2000.000001,0.0004,60]
[314014005,1707923535823,-2000.0,0.0004,80]
[314014006,1707923535833,-1000.0,0.0004,2]
[314014007,1707923535842,-26888.0,0.0004,30]
[314014008,1707923535851,-73000.0,0.0004,30]
[314014009,1707923535860,-2000.0,0.0004,30]
[314014010,1707923535870,-1512.0,0.0004,30]
[314014011,1707923535879,-408.92264101,0.0004,30]
[314014012,1707923535889,-20890.43675452,0.0004,15]
[314014013,1707923535899,-5279.4200316,0.0004,14]
[314014014,1707923535908,-163.80595944,0.0004,2]
[314014015,1707923535920,-656.13616284,0.0004,120]
[314014016,1707923535929,-2000.0,0.0004,15]
[314014017,1707923535939,-2013.0,0.0004,31]
[314014018,1707923535948,-518.120392,0.0004,90]
[314014019,1707923535957,-500.0,0.0004,2]
[314014020,1707923535966,-5080.26809291,0.0004,7]
[314014021,1707923535976,-1155693.34001453,0.0004,30]
[314014022,1707923535986,-496877.48045134,0.0004,30]
[314014023,1707923535994,-307604.02644877,0.0004,30]
[314014024,1707923536004,-893.0,0.0004,10]
[314014025,1707923536017,-225.10980625,0.0004,120]
[314014026,1707923536026,-3000.0,0.0004,97]
[314014027,1707923536035,-4609.02090857,0.0004,30]
[314014028,1707923536044,-15000.0,0.0004,30]
[314014029,1707923536054,-2000.0,0.0004,5]
[314014030,1707923536064,-605306.81566929,0.0004,30]
[314014031,1707923536073,-2000.0,0.0004,5]
[314014032,1707923536083,-2110.0,0.0004,15]
[314014033,1707923536093,-500.0,0.0004,120]
[314014034,1707923536102,-500.0,0.0004,120]
[314014035,1707923536112,-500.0,0.0004,120]
[314014036,1707923536122,-7850.0,0.0004,7]
[314014037,1707923536131,-151.25663355,0.0004,30]
[314014038,1707923536140,-1000.0,0.0004,90]
[314014039,1707923536150,-2000.0,0.0004,5]
[314014040,1707923536160,-2000.0,0.0004,5]
[314014041,1707923536176,-1341.92929912,0.0004,5]
[314014042,1707923536186,-698.0,0.0004,30]
[314014043,1707923536196,-50000.0,0.0004,120]
[314014044,1707923536206,-917.63812479,0.0004,7]
[314014045,1707923536216,-6612.3025,0.0004,7]
[314014046,1707923536225,-200.0,0.0004,16]
[314014047,1707923536236,-2000.0,0.0004,5]
[314014048,1707923536246,-671.0,0.0004,2]
[314014049,1707923536256,-2000.0,0.0004,5]
[314014050,1707923536266,-91827.93052169,0.0004,30]
[314014051,1707923536276,-1026.09,0.0004,30]
[314014052,1707923536286,-254.11782941,0.0004,2]
[314014053,1707923536296,-8365.08423344,0.0004,14]
[314014054,1707923536306,-600.0,0.0004,10]
[314014055,1707923536315,-255.0,0.0004,12]
[314014056,1707923536325,-500.0,0.0004,7]
[314014057,1707923536334,-500.0,0.0004,7]
[314014058,1707923536343,-255.0,0.0004,12]
[314014059,1707923536353,-500.0,0.0004,7]
[314014060,1707923536363,-500.0,0.0004,7]
[314014061,1707923536372,-2758.43,0.0004,7]
[314014062,1707923536381,-500.0,0.0004,7]
[314014063,1707923536390,-500.0,0.0004,7]
[314014064,1707923536400,-636.47,0.0004,7]
[314014065,1707923536409,-500.0,0.0004,7]
[314014066,1707923536422,-500.0,0.0004,7]
[314014067,1707923536431,-500.0,0.0004,7]
[314014068,1707923536440,-500.0,0.0004,7]
[314014069,1707923536449,-500.0,0.0004,7]
[314014070,1707923536458,-255.0,0.0004,12]
[314014071,1707923536468,-500.0,0.0004,7]
[314014072,1707923536477,-500.0,0.0004,7]
[314014073,1707923536486,-536.83,0.0004,7]
[314014074,1707923536495,-395.24940671,0.0004,7]
[314014075,1707923536504,-511.55,0.0004,7]
[314014076,1707923536514,-564.0,0.0004,7]
[314014077,1707923536523,-500.0,0.0004,7]
[314014078,1707923536532,-500.0,0.0004,7]
[314014079,1707923536542,-1240.83,0.0004,7]
[314014080,1707923536551,-500.0,0.0004,7]
[314014081,1707923536561,-1171.11,0.0004,7]
[314014082,1707923536570,-564.08,0.0004,7]
[314014083,1707923536580,-1281.17,0.0004,7]
[314014084,1707923536589,-1147.23,0.0004,7]
[314014085,1707923536598,-500.0,0.0004,7]
[314014086,1707923536607,-568.35,0.0004,7]
[314014087,1707923536616,-1433.14,0.0004,7]
[314014088,1707923536626,-500.0,0.0004,7]
[314014089,1707923536636,-500.0,0.0004,7]
[314014090,1707923536646,-530.02,0.0004,7]
[314014091,1707923536655,-528.29,0.0004,7]
[314014092,1707923536664,-1489.83,0.0004,7]
[314014093,1707923536677,-1024.97,0.0004,7]
[314014094,1707923536687,-17576.96658818,0.0004,30]
[314014095,1707923536697,-569.56,0.0004,7]
[314014096,1707923536877,-500.0,0.0004,7]
[314014097,1707923536887,-785.09,0.0004,7]
[314014098,1707923536896,-1152.13,0.0004,7]
[314014099,1707923536906,-1376.22,0.0004,2]
[314014100,1707923536915,-500.0,0.0004,7]
[314014101,1707923536926,-770.95,0.0004,7]
[314014102,1707923536935,-1599.92,0.0004,7]
[314014103,1707923536945,-1153.23,0.0004,7]
[314014104,1707923536954,-500.0,0.0004,7]
[314014105,1707923536963,-1045.09,0.0004,7]
[314014106,1707923536976,-774.56,0.0004,7]
[314014107,1707923536985,-1031.35,0.0004,7]
[314014108,1707923536995,-548.76,0.0004,7]
[314014109,1707923537005,-500.0,0.0004,7]
[314014110,1707923537016,-661.87,0.0004,7]
[314014111,1707923537025,-500.0,0.0004,7]
[314014112,1707923537034,-584.37,0.0004,7]
[314014113,1707923537043,-520.1,0.0004,7]
[314014114,1707923537052,-500.0,0.0004,7]
[314014115,1707923537061,-1604.0,0.0004,7]
[314014116,1707923537071,-943.16,0.0004,7]
[314014117,1707923537081,-500.0,0.0004,7]
[314014118,1707923537091,-255.0,0.0004,12]
[314014119,1707923537100,-644.22,0.0004,7]
[314014120,1707923537109,-1264.92,0.0004,7]
[314014121,1707923537118,-704.7,0.0004,7]
[314014122,1707923537128,-1136.26,0.0004,7]
[314014123,1707923537138,-812.61,0.0004,7]
[314014124,1707923537147,-570.14,0.0004,7]
[314014125,1707923537157,-500.0,0.0004,7]
[314014126,1707923537166,-553.03,0.0004,7]
[314014127,1707923537178,-519.06,0.0004,7]
[314014128,1707923537188,-1130.05,0.0004,7]
[314014129,1707923537197,-733.41,0.0004,7]
[314014130,1707923537207,-674.48,0.0004,7]
[314014131,1707923537216,-599.48,0.0004,7]
[314014132,1707923537225,-699.45,0.0004,7]
[314014133,1707923537235,-647.83,0.0004,7]
[314014134,1707923537244,-808.31,0.0004,7]